Cogmind - Beta 13 @@@ ROGUE MODE // 2024.04.12 @ 19:42:20 Player: Cheeriohz Result: Destroyed by ZZ-QRV(R) with Subdweller Machine Gun Performance ------------- Evolutions (0) 0 Regions Visited (2) 400 Robots Destroyed (17) 85 Value Destroyed (286) 286 Prototype IDs (1) 20 Alien Tech Used (0) 0 Bonus (0) 0 TOTAL SCORE: 791 Bonus ------- None Cogmind --------- Core Integrity 0/250 Matter 186/300 Energy 265/265 System Corruption 0% Temperature Cool (0) Movement Treading (240) Ox1 Location -10/Subcaves Parts ------- > --- POWER (1) -------- Improved Ion Engine > --- PROPULSION (2) --- Improved Treads Improved Treads > --- UTILITY (2) ------ High-capacity Storage Unit Power Shielding > --- WEAPON (2) ------- Improved Assault Rifle Improved Assault Rifle > --- INVENTORY (20) --- Improved Ion Engine Improved Ion Engine Improved Treads Improved Treads Wheel Improved Heat Sink Medium Battery (150) High-capacity Matter Pod (200) Structural Scanner Visual Processing Unit Sensor Array Improved Terrain Scanner Targeting Computer Heavy Assault Rifle Heavy Assault Rifle Improved Assault Rifle Grenade Launcher Peak State ------------ > --- POWER ------------ Improved Ion Engine > --- PROPULSION ------- Improved Treads Improved Treads > --- UTILITY ---------- High-capacity Storage Unit Power Shielding > --- WEAPON ----------- Improved Assault Rifle Improved Assault Rifle > --- INVENTORY -------- Improved Ion Engine Improved Ion Engine Improved Treads Improved Treads Wheel Improved Heat Sink Medium Battery High-capacity Matter Pod Structural Scanner Visual Processing Unit Sensor Array Improved Terrain Scanner Targeting Computer Heavy Assault Rifle Heavy Assault Rifle Improved Assault Rifle Grenade Launcher [Rating: 17] Favorites ----------- Power Ion Engine Engine Ion Engine Propulsion Wheel Treads Improved Treads Leg Aluminum Leg Wheel Wheel Utility Structural Scanner Device Structural Scanner Storage Huge Storage Unit Protection Power Shielding Weapon Improved Assault Rifle Energy Gun Small Laser Ballistic Gun Improved Assault Rifle Build | -11 -10 -10 ------- Run | Yrd Mat Sub Slots Evolved . | . . . Power . | . . . Propulsion . | . . . Utility . | . . . Weapon . | . . . Parts Attached 17 | 4 9 4 Power 1 | . 1 . Engine 1 | . 1 . Core . | . . . Reactor . | . . . Propulsion 5 | 2 1 2 Treads 2 | . . 2 Leg . | . . . Wheel 3 | 2 1 . Hover . | . . . Flight . | . . . Utility 6 | 1 4 1 Device 2 | 1 1 . Storage 3 | . 3 . Processor . | . . . Hackware . | . . . Protection 1 | . . 1 Artifact . | . . . Weapon 5 | 1 3 1 Energy Gun . | . . . Energy Cannon . | . . . Ballistic Gun 5 | 1 3 1 Ballistic Cannon . | . . . Launcher . | . . . Special Weapon . | . . . Impact Weapon . | . . . Slashing Weapon . | . . . Piercing Weapon . | . . . Special Melee Weapon . | . . . Unidentified Prototypes 1 | . 1 . Parts Lost 3 | . . 3 Power . | . . . Propulsion 2 | . . 2 Utility . | . . . Weapon 1 | . . 1 Highest Loss Streak 3 | . . 3 To Critical Strikes 1 | . . 1 Average Slot Usage (%) 99 | . 99 97 Engine 14 | . 14 14 Wheel 27 | . 28 16 Device 13 | . 14 2 Storage 14 | . 14 14 Energy Gun 2 | . 2 . Ballistic Gun 25 | . 25 25 Naked Turns . | . . . Heaviest Build 92 | 14 92 54 Greatest Support 20 | 20 20 20 Greatest Overweight (x) 4 | . 4 2 Average Overweight (x) 2 | . 3 2 Largest Inventory Capacity 25 | 8 25 20 Average Capacity 20 | 8 21 20 Most Carried 25 | 8 25 20 Average Carried 18 | 5 19 18 Final Capacity 20 | 8 20 20 Final Carried 20 | 6 20 17 Class Distribution -------------------- 100% | Mutant Dominant Class ---------------- Mutant | -10/Materials Mutant | -10/Subcaves Resources | -11 -10 -10 ----------- Run | Yrd Mat Sub Matter Collected 708 | 264 444 . Remotely . | . . . Salvage Created 560 | 180 380 . Parts 43 | 14 29 . Haulers Intercepted 1 | . 1 . Recyclers Shooed 1 | . 1 . Parts Field Recycled . | . . . Retrieved Matter . | . . . Parts Self-Destructed . | . . . Prevented . | . . . Kills | -11 -10 -10 ------- Run | Yrd Mat Sub Combat Hostiles Destroyed 8 | . 8 . Guns 8 | . 8 . Classes Destroyed 7 | 2 5 . Builder 1 | . 1 . Tunneler 4 | 4 . . Hauler 1 | . 1 . Recycler 1 | 1 . . Watcher 2 | . 2 . Swarmer 3 | . 3 . Grunt 5 | . 5 . Best Kill Streak 3 | 3 3 . Combat Bots Only 3 | . 3 . Max Kills in Single Turn 1 | 1 1 . Gunslinging . | . . . Exploded . | . . . Melee . | . . . Uniques/NPCs Destroyed . | . . . Combat | -11 -10 -10 -------- Run | Yrd Mat Sub Hostile Shots Fired 73 | . 34 39 Missed 13 | . 6 7 Damage Taken 974 | . 301 673 Core 267 | . 89 178 Absorbed by Shields . | . . . Redirected to Shielding 26 | . . 26 Core Remaining (%) 100 | 100 . . Volleys Fired 67 | 11 41 15 Largest 2 | 2 2 2 Hottest 80 | 80 60 46 Shots Fired 131 | 22 82 27 Gun 131 | 22 82 27 Cannon . | . . . Launcher . | . . . Special . | . . . Kinetic 101 | 8 66 27 Thermal 27 | 11 16 . Explosive . | . . . Electromagnetic 3 | 3 . . Robot Hit Streak 24 | 7 24 19 Robot Miss Streak 4 | 2 4 1 Penetration Max . | . . . Secondary Targets . | . . . Shots Hit Robots 95 | 12 59 24 Core Hits 28 | 6 20 2 Critical Kills . | . . . Critical Parts Destroyed . | . . . Critical Strikes . | . . . Melee Attacks . | . . . Impact . | . . . Slashing . | . . . Piercing . | . . . Sneak Attacks . | . . . Combat Hostiles . | . . . Follow-up Attacks . | . . . Damage Inflicted 955 | 145 734 76 Guns 955 | 145 734 76 Cannons . | . . . Explosions . | . . . Melee . | . . . Ramming . | . . . Kinetic 746 | 47 623 76 Thermal 182 | 71 111 . Explosive . | . . . Electromagnetic 27 | 27 . . Impact . | . . . Slashing . | . . . Piercing . | . . . Highest Corruption . | . . . Average Corruption . | . . . Corruption Purged . | . . . Corruption Blocked . | . . . Overload Shots . | . . . Overflow Damage . | . . . Projectiles . | . . . Explosions . | . . . Melee . | . . . Knockbacks . | . . . Impact . | . . . Kinetic . | . . . Secondary . | . . . Self-Inflicted Damage . | . . . Shots . | . . . Rammed . | . . . Targets Rammed . | . . . Kicked . | . . . Crushed . | . . . Highest Temperature 56 | 56 9 . Average Temperature 13 | 23 4 . Received Heat Transfer 117 | . 117 . Siege Activations . | . . . Robots Corrupted . | . . . Combat Hostiles . | . . . Parts Fried . | . . . Impact Corruptions . | . . . Robots Melted . | . . . Combat Hostiles . | . . . Parts Melted . | . . . Heat Transferred 400 | 150 250 . Parts Sabotaged . | . . . Parts Stolen . | . . . Parts Stripped . | . . . Power Chain Reactions . | . . . Alert | -11 -10 -10 ------- Run | Yrd Mat Sub Peak Influence 152 | 25 152 . Initial 16 | . 16 . Average 54 | 13 56 . Maximum Alert Level . | . . . Low Security (%) 100 | 100 100 . Level 1 . | . . . Level 2 . | . . . Level 3 . | . . . Level 4 . | . . . Level 5 . | . . . High Security . | . . . Max Security . | . . . Squads Dispatched 3 | . 3 . Investigation 2 | . 2 . Extermination . | . . . Reinforcement 1 | . 1 . Assault . | . . . Garrison . | . . . Intercept . | . . . Searches Triggered . | . . . Construction Impeded . | . . . Haulers Reinforced . | . . . Active Scanning Responses . | . . . Cargo Convoy Interrupts . | . . . Stealth | -11 -10 -10 --------- Run | Yrd Mat Sub Distress Signals . | . . . Communications Jammed . | . . . Distress Signals . | . . . Times Spotted 20 | . 18 2 Peak Tracking Total 4 | . 4 2 Tactical Retreats . | . . . Traps | -11 -10 -10 ------- Run | Yrd Mat Sub Traps Triggered 3 | . 3 . Indirectly . | . . . Trap Hack Attempts . | . . . Triggered . | . . . Disarmed . | . . . Reprogrammed . | . . . Reused . | . . . Traps Extracted . | . . . Installed . | . . . Triggered . | . . . Machines | -11 -10 -10 ---------- Run | Yrd Mat Sub Machines Disabled . | . . . Max in Single Turn . | . . . Machines Repaired . | . . . Machines Dismantled . | . . . Machines Sabotaged . | . . . Overloaded Fab Kills . | . . . Hacking | -11 -10 -10 --------- Run | Yrd Mat Sub Machines Accessed 5 | . 5 . Terminals 5 | . 5 . Fabricators . | . . . Repair Stations . | . . . Recycling Units . | . . . Scanalyzers . | . . . Garrison Access . | . . . Total Hacks 20 | . 20 . Successful 8 | . 8 . Failed 12 | . 12 . Catastrophic 2 | . 2 . Database Lockouts . | . . . Manual 19 | . 19 . Terminals 20 | . 20 . Fabricators . | . . . Repair Stations . | . . . Recycling Units . | . . . Scanalyzers . | . . . Garrison Access . | . . . Terminal Hacks 2 | . 2 . Robot Analysis 2 | . 2 . Fabricator Hacks . | . . . Repair Station Hacks . | . . . Recycling Unit Hacks . | . . . Scanalyzer . | . . . Garrison Access Hacks . | . . . Unauthorized Hacks 6 | . 6 . Terminals 6 | . 6 . Assimilate 1 | . 1 . Botnet 5 | . 5 . Fabricators . | . . . Repair Stations . | . . . Recycling Units . | . . . Scanalyzers . | . . . Garrison Access . | . . . Data Cores Recovered . | . . . Used . | . . . Hacking Detections 5 | . 5 . Full Trace Events 1 | . 1 . Feedback Events . | . . . Feedback Blocked . | . . . Robot Schematics Acquired . | . . . Robots Built . | . . . Authchips . | . . . Time . | . . . Total Robot Build Rating . | . . . Part Schematics Acquired . | . . . Parts Built . | . . . Authchips . | . . . Time . | . . . Total Part Build Rating . | . . . Parts Repaired . | . . . Time . | . . . Parts Recycled . | . . . Recycled Matter . | . . . Retrieved Matter . | . . . Retrieved Components . | . . . Parts Scanalyzed . | . . . Part Schematics Acquired . | . . . Parts Damaged . | . . . Bothacking | -11 -10 -10 ------------ Run | Yrd Mat Sub Used RIF Installer . | . . . Robots Hacked . | . . . Non-combat . | . . . Combat . | . . . Robot Hacks Applied . | . . . Relay Couplers Released . | . . . Fabnet Peak Effective % . | . . . Robots Rewired . | . . . Allies Hacked . | . . . Hacks Repelled . | . . . Allies | -11 -10 -10 -------- Run | Yrd Mat Sub Total Allies . | . . . Largest Group . | . . . Highest-Rated Group . | . . . Highest-Rated Ally . | . . . Total Orders . | . . . Ally Attacks . | . . . Total Damage . | . . . Kills . | . . . Allies Corrupted . | . . . Allies Melted . | . . . Intel | -11 -10 -10 ------- Run | Yrd Mat Sub Robot Analysis Total 2 | . 2 . Derelict Logs Recovered . | . . . Drone Launches . | . . . Drone Recoveries . | . . . Exploration | -11 -10 -10 ------------- Run | Yrd Mat Sub Turns Passed 1509 | 93 1364 52 Spaces Moved 716 | 21 690 5 Core . | . . . Treads . | . . . Legs 7 | 7 . . Wheels 709 | 14 690 5 Hover . | . . . Flight . | . . . Fastest Speed 80 | 80 80 110 Average Speed 125 | 93 126 110 Slowest Speed 140 | 120 140 110 Overloaded Moves . | . . . Propulsion Burnouts . | . . . Robots Hopped . | . . . Cave-ins Triggered . | . . . Exploration Rate (%) 32 | 2 92 2 Regions Visited 2 Branch Regions 1 Pre-discovered Areas . | . . . Known Exits Taken . | . . . Unknown Exits Taken 2 | 1 1 . Scrap Searched . | . . . Spaces Dug . | . . . Terrain Destroyed . | . . . Melee . | . . . Projectile . | . . . AOE . | . . . Terrain Rammed . | . . . Walls Destroyed . | . . . Machines Disabled . | . . . Actions | -11 -10 -10 --------- Run | Yrd Mat Sub Total 1211 | 71 1116 24 Wait 358 | 30 328 . Move 714 | 20 689 5 Hop . | . . . Pick Up 31 | 3 28 . Fast Attach 3 | 1 2 . Attach 3 | . . 3 Detach 2 | . 2 . Swap 11 | 3 7 1 Drop 22 | 3 19 . Fire 67 | 11 41 15 Melee . | . . . Ram . | . . . Kick . | . . . Crush . | . . . Escape Stasis . | . . . Rewire . | . . . Trap . | . . . Miscellaneous . | . . . Route ------- -11/Scrapyard -10/Materials (discovered 5 exits: [*Mat x3] / [*Min] / [*Sub]) -10/Subcaves History --------- Turn | Location | Event 15 | -11/Scrapyard | Discovered new exit (range 3) 94 | -11/Scrapyard | Entered Materials 170 | -10/Materials | Discovered new exit (range 16) 282 | -10/Materials | Discovered new exit (range 12) 301 | -10/Materials | Build established: Mutant 364 | -10/Materials | Discovered new exit (range 10) 751 | -10/Materials | Discovered new exit (range 7) 1332 | -10/Materials | Discovered new exit (range 4) 1458 | -10/Materials | Entered Subcaves 1485 | -10/Subcaves | Core integrity fell below 50% 1501 | -10/Subcaves | Core integrity fell below 20% 1510 | -10/Subcaves | Destroyed by ZZ-QRV(R) with Subdweller Machine Gun Last Messages --------------- 01300_ G-34 Mercenary destroyed. 01303_ Acquired 48 matter. 01331_ T-07 Excavator is excavating. 01332_ EXIT=FOUND 01340_ U-05 Engineer lays Concrete. 01341_ U-05 Engineer builds a Wall. 01381_ T-07 Excavator is excavating. 01382_ U-05 Engineer lays Concrete. 01385_ T-07 Excavator is excavating. 01386_ U-05 Engineer lays Concrete. 01435_ T-07 Excavator is excavating. 01453_ U-05 Engineer lays Concrete. 01457_ U-05 Engineer builds a Wall. LOCATION=UNKNOWN AMBIENT_HEAT=-10 GOAL=ESCAPE 01480_ Wheel destroyed. 01488_ Critical hit (Destroy). 01488_ Imp. Assault Rifle destroyed. 01494_ Wheel destroyed. Map ----- +----------------------------------------------------+ | ?????????????????????????????????????????????????? | | ?????????????????????????????????????????????????? | | ?????????????????????????????????????????????????? | | ?????????????????????????????????????????????????? | | ?????????????????????????????????????????????????? | | ?????????????????????????????????????????????????? | | ?????????????????????????????????????????????????? | | ?????????????????????????????????????????????????? | | ?????????????????????????????????????????????????? | | ?????????????????????????????????????????????????? | | ?????????????????????????????????????????????????? | | ?????????????????????????????????????????????????? | | ?????????????????????????????????????????????????? | | ?????????????????????????????????????????????????? | | ?????????????????????????????????????????????????? | | ?????????????????????????????????????????????????? | | ?????????????????????????????????????????????????? | | ?????????????????????????????????????????????????? | | ?????????????????????????????????????????????????? | | ?????????????????????????????????????????????????? | | ?????????????????????????????????????????????????? | | ??????????????????????????########???????????????? | | ?????????????????####?############???????????????? | | ?????????????????########### ##???????????????? | | ?????????????????##"" ## # ####?????? ##????? | | ????????????????### " @ ### ??? ##????? | | ????????????????##""""" ## ????? | | ????????????????# """###RR## ##??????????? | | ????????????????????####" # ##??????????? | | ??????????????????????### ########??????????? | | ??????????????????????## # #######??????????? | | ????????????????????? ### ##???????????????? | | ??????????????????? """ ### ###???????????????? | | ????????????????? "?"?## ##???????????????? | | ???????????????? ????"??? ##???????????????? | | ???????????????????????? ??? ###???????????????? | | ??????????????????????????? ###???????????????? | | ??????????????????????????? # ????????????????? | | ?????????????????????????? ????????????????? | | ??????????????????????????## ?????????????????? | | ??????????????????????????#### ?????????????????? | | ??????????????????????????##### ?????????????????? | | ?????????????????????????????## ?????????????????? | | ??????????????????????????????? ?????????????????? | | ?????????????????????????????????????????????????? | | ?????????????????????????????????????????????????? | | ?????????????????????????????????????????????????? | | ?????????????????????????????????????????????????? | | ?????????????????????????????????????????????????? | | ?????????????????????????????????????????????????? | +----------------------------------------------------+ Best States ------------- Heat Dissipation 25 Energy Generation 12 Energy Capacity 265 Matter Stores 300 Matter Capacity 300 Sight Range 16 Terrain Scan Range 16 Terrain Scan Density 10 Power Shielding 33 Evasion (%) 55 Recoil Reduction 2 Item Schematics ----------------- None Robot Schematics ------------------ None Fabricated ------------ Nothing Alien Tech Used ----------------- None Achievements -------------- None Challenges ------------ None Game ------ Seed WeldingSalvageBrace Manual? 0 Play Time 00:09:18 Cumulative 109.5 hours Start 2024.04.12 @ 19:33:29 End 2024.04.12 @ 19:42:20 Sessions 1 Manual Loads 0 Difficulty Rogue Special Mode None Game No. 106 Rogue 106 Adventurer 0 Explorer 0 Win Type - Total 3 Types 2/0/0/1/0/0/0/0/0 Lore% 46 Gallery% 67 Achievement% 50 Wizard Run 0 Options --------- Layout 1 ASCII 0 Keyboard 1 Movement Numpad Keybinds 0 Fullscreen 1 Font 32/SmallcapsGlow Map View 77x35 Zoom Use 0% Tactical HUD 1 Map Filters NONE Filters NONE Steam 1 RUN: 87e42469-9879-4d44-ac1f-d0b658b26bfe